bitfinex/quotes_SOLUSD_20251207
["timestamp","ask_amount","ask_price","bid_price","bid_amount"]
[1765149037881,0.2,131.01,130.98,10.13748835]
[1765149038068,0.2,131.01,130.99,9.45748835]
[1765149038376,0.2,131.01,130.99,10.13748835]
[1765149038584,0.2,131.01,131.0,0.68]
[1765149039270,0.2,131.01,131.0,10.13748835]
[1765149039467,7.62837815,131.09,131.0,19.5949767]
[1765149039778,8.32792656,131.1,131.05,17.08799408]
[1765149039986,8.32792656,131.1,131.05,7.63050573]
[1765149040173,0.7,131.09,131.04,17.08856357]
[1765149040681,0.7,131.09,131.04,14.41063636]
[1765149040881,0.7,131.09,131.05,7.63054939]
[1765149041079,0.7,131.09,131.05,13.73011053]
[1765149041280,13.72681208,131.11,131.05,13.73011053]
[1765149041281,14.42690659,131.11,131.05,13.73011053]
[1765149041488,8.32734545,131.11,131.06,6.77956114]
[1765149041651,0.7,131.11,131.07,6.09956114]
[1765149041852,16.14660304,131.12,131.07,6.77956114]
[1765149042079,8.52,131.12,131.08,6.77956114]
[1765149042248,8.52,131.12,131.08,6.09956114]
[1765149042449,16.84665654,131.12,131.08,6.09956114]
[1765149042656,16.84665654,131.12,131.07,6.09956114]
[1765149042657,0.7,131.11,131.07,6.09956114]
[1765149042864,0.7,131.11,131.04,24.828864]
[1765149042865,6.79956114,131.11,131.05,7.63060944]
[1765149043177,6.79956114,131.11,131.05,13.73017058]
[1765149043373,0.7,131.1,131.05,13.73017058]
[1765149043886,8.32819368,131.1,131.05,14.41017058]
[1765149044478,0.7,131.09,131.05,14.41017058]
[1765149045073,8.32840187,131.09,131.05,14.41017058]
[1765149045269,7.62783703,131.1,131.05,13.73017058]
[1765149045455,28.57388061,131.14,131.09,6.09956114]
[1765149045651,0.7,131.14,131.1,6.09956114]
[1765149046274,8.32548304,131.14,131.1,6.09956114]
[1765149046559,14.42504418,131.14,131.08,6.77956114]
[1765149046869,14.42504418,131.14,131.08,6.09956114]
[1765149047068,33.48864033,131.14,131.08,13.7283269]
[1765149047384,27.38907919,131.14,131.09,6.09956114]
[1765149047596,0.2,131.15,131.11,6.09956114]
[1765149047887,0.2,131.15,131.13,6.09956114]
[1765149048293,0.2,131.15,131.13,6.77956114]
[1765149048857,0.2,131.15,131.14,6.77956114]
[1765149049054,0.2,131.15,131.14,14.4049996]
[1765149049664,0.2,131.15,131.14,13.7249996]
[1765149049873,0.2,131.15,131.13,13.72541992]
[1765149050103,0.9,131.15,131.12,13.7259842]
[1765149050305,0.2,131.15,131.14,7.62543846]
[1765149050585,0.2,131.15,131.14,13.7249996]
[1765149050984,0.2,131.15,131.12,19.06541433]
[1765149050985,0.2,131.15,131.13,6.09956114]
[1765149051167,0.2,131.15,131.12,13.72616272]
[1765149051561,0.2,131.15,131.13,6.09956114]
[1765149051759,0.2,131.15,131.12,13.72616272]
[1765149051960,0.2,131.15,131.13,6.09956114]
[1765149052170,0.2,131.15,131.14,6.09956114]
[1765149052407,0.2,131.15,131.13,6.76956114]
[1765149053089,0.2,131.15,131.14,7.62543846]
[1765149055495,8.80994492,131.22,131.14,41.95859575]
[1765149055704,0.2,131.24,131.19,6.09956114]
[1765149055980,9.47994492,131.23,131.17,22.40842514]
[1765149056686,9.47994492,131.23,131.18,6.09956114]
[1765149056881,0.7,131.22,131.17,22.40842514]
[1765149057215,8.32100166,131.22,131.17,23.93206394]
[1765149057381,8.32100166,131.22,131.17,30.03162508]
[1765149057562,0.7,131.21,131.17,30.03162508]
[1765149057984,17.13034165,131.23,131.18,6.09956114]
[1765149058366,0.7,131.22,131.17,30.72162508]
[1765149059687,0.7,131.22,131.19,6.09956114]
[1765149060189,8.3208023,131.22,131.17,23.93206394]
[1765149060489,8.80994492,131.22,131.19,6.09956114]
[1765149060787,0.7,131.21,131.17,13.72320265]
[1765149061004,8.80994492,131.22,131.18,6.09956114]
[1765149061176,16.43031508,131.23,131.19,6.09956114]
[1765149061377,0.2,131.24,131.22,6.09956114]
[1765149061689,0.7,131.23,131.21,6.09956114]
[1765149061893,0.2,131.24,131.21,6.09956114]
[1765149062073,8.51968036,131.24,131.2,6.09956114]
[1765149062274,8.51968036,131.24,131.19,13.7220184]
[1765149062482,0.7,131.23,131.2,7.6219066]
[1765149062786,0.7,131.23,131.2,13.72146774]
[1765149063508,0.7,131.23,131.2,6.09956114]
[1765149064307,0.7,131.23,131.19,6.09956114]
[1765149065100,8.80994492,131.22,131.17,22.22307299]
[1765149065285,8.3203061,131.23,131.19,6.09956114]
[1765149065675,0.7,131.22,131.19,6.09956114]
[1765149066081,0.7,131.22,131.18,13.72216872]
[1765149066684,8.80994492,131.21,131.16,6.09956114]
[1765149066879,14.90950606,131.21,131.15,6.09956114]
[1765149067098,0.7,131.2,131.15,6.09956114]
[1765149067295,14.90950606,131.19,131.14,7.6252624]
[1765149067581,16.43277132,131.19,131.14,13.72482354]
[1765149067898,0.7,131.19,131.15,6.09956114]
[1765149068409,0.7,131.18,131.14,13.72482354]
[1765149069384,8.80994492,131.13,131.07,0.69]
[1765149069589,7.62622268,131.13,131.08,14.41811028]
[1765149070008,0.7,131.12,131.09,6.09956114]
[1765149070905,0.7,131.15,131.11,6.09956114]
[1765149071896,23.2343854,131.15,131.09,6.09956114]
[1765149072286,0.7,131.14,131.09,6.09956114]
[1765149072708,0.7,131.14,131.1,7.62768708]
[1765149072904,0.7,131.14,131.05,0.69]
[1765149072905,14.90950606,131.11,131.05,0.69]
[1765149073180,14.90950606,131.11,131.02,46.66133325]
[1765149073181,6.09956114,131.1,131.04,6.09956114]
[1765149073387,14.90950606,131.09,131.03,13.73140117]
[1765149073601,15.60950606,131.09,131.04,6.09956114]
[1765149073795,15.60950606,131.09,131.04,13.73061381]
[1765149073796,23.23828406,131.09,131.04,13.73061381]
[1765149073994,0.7,131.08,131.04,13.73061381]
[1765149075005,6.79956114,131.08,131.03,7.63184003]
[1765149075405,0.7,131.07,131.03,7.63184003]
[1765149075608,6.79956114,131.08,131.03,8.32184003]
[1765149076108,6.09956114,131.06,131.0,25.87330222]
[1765149076294,0.7,131.07,131.02,13.73176673]
[1765149076612,0.7,131.07,131.02,32.81282305]
[1765149076801,0.7,131.07,131.03,0.69]
[1765149077199,0.7,131.07,131.04,7.63125763]
[1765149078003,0.7,131.07,131.02,25.18061746]
[1765149078004,6.09956114,131.06,131.0,35.39235372]
[1765149078207,6.09956114,131.06,131.0,19.08348972]
[1765149078514,6.79956114,131.07,131.03,7.63171522]
[1765149079010,0.7,131.06,131.02,7.63225519]
[1765149079198,14.42996563,131.06,131.01,7.63300511]
[1765149079396,6.79956114,131.07,131.02,0.69]
[1765149079731,0.7,131.06,131.02,6.09956114]
[1765149080011,0.7,131.06,131.01,33.50507903]
[1765149080195,0.7,131.06,131.02,0.69]
[1765149080595,0.7,131.06,131.03,7.63184003]
[1765149082188,0.7,131.06,131.02,7.63229984]
[1765149083813,14.42995359,131.06,131.01,8.33287381]
[1765149084005,8.33039245,131.06,131.01,13.73243495]
[1765149084209,0.67,131.05,131.01,14.43243495]
[1765149086212,8.30069523,131.05,131.01,6.09956114]
[1765149086412,6.09956114,131.03,130.97,6.09956114]
[1765149086597,6.09956114,131.03,130.97,13.73480468]
[1765149086909,7.63300511,131.01,130.97,7.63532663]
[1765149087314,8.30300511,131.01,130.97,7.63532663]
[1765149087490,0.67,131.0,130.95,6.09956114]
[1765149087815,9.17,131.03,130.98,6.09956114]
[1765149087996,0.67,131.02,130.98,6.79956114]
[1765149088797,0.67,131.02,130.98,13.73418841]
[1765149090019,8.5,131.03,131.0,6.09956114]
[1765149090394,13.72851001,131.08,131.02,6.09956114]
[1765149090595,7.62894887,131.08,131.03,6.09956114]
[1765149091010,8.29894887,131.08,131.03,14.43083449]
[1765149091216,0.67,131.08,131.04,0.7]
[1765149091423,7.62850931,131.09,131.04,6.79956114]
[1765149091715,8.29850931,131.09,131.04,6.79956114]
[1765149091914,16.127834,131.1,131.05,6.79956114]
[1765149092117,16.797834,131.1,131.05,0.7]
[1765149092292,9.47994492,131.09,131.04,6.09956114]
[1765149092497,9.47994492,131.09,131.03,7.63127335]
[1765149092498,14.90950606,131.08,131.03,7.63127335]
[1765149092697,15.57950606,131.08,131.02,13.73178473]
[1765149092897,0.67,131.07,131.02,13.73178473]
[1765149093321,0.67,131.07,131.03,6.09956114]
[1765149093619,28.23941266,131.1,131.05,6.09956114]
[1765149093919,9.47994492,131.09,131.04,6.09956114]
[1765149094222,6.09956114,131.08,131.02,13.73178473]
[1765149094399,6.09956114,131.07,131.02,13.73178473]
[1765149094601,6.76956114,131.07,131.02,13.73178473]
[1765149094800,0.67,131.06,131.02,13.73178473]
[1765149095212,7.63184003,131.03,130.98,6.09956114]
[1765149095708,0.67,131.02,130.98,6.09956114]
[1765149096011,25.478864,131.05,131.01,6.09956114]
[1765149096212,9.47994492,131.04,131.0,6.09956114]
[1765149096618,0.67,131.03,131.0,6.09956114]
[1765149097200,0.67,131.03,131.0,13.73301784]
[1765149097418,8.3018929,131.03,130.99,6.09956114]
[1765149097614,8.3018929,131.03,130.98,13.73415031]
[1765149097925,0.67,131.02,130.98,13.73415031]
[1765149098504,0.67,131.02,130.98,14.43415031]
[1765149098709,0.67,131.02,130.99,7.63413909]
[1765149099025,0.67,131.02,130.99,13.73370023]
[1765149099536,0.67,131.02,130.99,7.63413909]
[1765149101634,0.67,131.02,130.98,7.63475339]
[1765149102228,0.67,131.02,130.98,8.33475339]
[1765149103237,0.67,131.02,130.98,17.78381739]
[1765149103610,8.30255972,131.02,130.98,7.63475339]
[1765149103826,0.67,131.02,130.98,8.33475339]
[1765149104004,0.67,131.02,130.98,7.63475339]
[1765149104402,0.67,131.07,130.99,0.7]
[1765149104606,10.119064,131.07,131.01,9.449064]
[1765149104830,0.67,131.06,131.01,9.449064]
[1765149105012,42.86680181,131.08,131.02,10.149064]
[1765149105215,0.67,131.08,131.03,10.149064]
[1765149105626,8.5,131.09,131.05,7.63067531]
[1765149105825,0.67,131.08,131.04,7.63103901]
[1765149106244,0.67,131.08,131.04,27.40918308]
[1765149106433,0.67,131.08,131.04,36.85824708]
[1765149107248,0.67,131.08,131.04,7.63103901]
[1765149108237,0.67,131.08,131.04,17.78010301]
[1765149108438,0.67,131.08,131.04,36.85824708]
[1765149108656,8.5,131.09,131.04,36.85824708]
[1765149108854,8.5,131.09,131.06,9.449064]
[1765149109052,0.68,131.09,131.05,0.7]
[1765149109245,17.07626683,131.11,131.05,0.7]
[1765149109792,18.93900892,131.1,131.04,43.01804708]
[1765149110058,17.07894804,131.07,131.0,9.449064]
[1765149110358,17.07894804,131.07,131.01,9.449064]
[1765149110530,0.68,131.06,131.01,9.449064]
[1765149110729,0.68,131.06,130.99,9.449064]
[1765149110730,18.25900892,131.05,130.99,9.449064]
[1765149110960,9.449064,131.03,130.96,9.449064]
[1765149111468,18.25900892,131.05,130.99,7.63395376]
[1765149111631,10.149064,131.03,130.99,7.63395376]
[1765149111948,10.149064,131.03,130.98,19.08667199]
[1765149111949,9.449064,131.02,130.98,7.63470485]
[1765149112150,17.78165939,131.02,130.97,7.63533633]
[1765149112338,0.7,131.02,130.97,36.17274117]
[1765149112657,0.7,131.01,130.97,36.87274117]
[1765149112839,0.7,131.01,130.97,36.17274117]
[1765149113043,10.149064,131.03,130.97,36.87274117]
[1765149113351,0.7,131.05,131.0,9.449064]
[1765149113560,9.449064,131.06,131.0,25.757928]
[1765149113561,17.07955095,131.06,131.0,25.757928]
[1765149113767,17.77955095,131.06,131.0,26.457928]
[1765149114457,17.77955095,131.06,131.01,7.63300511]
[1765149114660,8.33048695,131.06,131.01,7.63300511]
[1765149114962,0.7,131.05,131.01,7.63300511]
[1765149115169,18.95900892,131.05,131.0,7.63353134]
[1765149115339,9.449064,131.04,131.0,7.63353134]
[1765149115539,9.449064,131.04,130.97,19.08768829]
[1765149115540,9.449064,131.02,130.97,19.08768829]
[1765149115955,0.7,131.01,130.97,19.08768829]
[1765149116366,0.7,131.01,130.96,7.63539932]
[1765149116367,9.449064,131.0,130.96,7.63539932]
[1765149116666,17.08294314,131.0,130.95,7.6362758]
[1765149116846,0.7,130.99,130.95,7.6362758]
[1765149117241,10.149064,130.99,130.95,7.6362758]
[1765149117441,10.149064,130.99,130.94,7.63687144]
[1765149117641,10.149064,130.99,130.91,62.9]
[1765149117642,9.449064,130.96,130.91,19.0966425]
[1765149117841,0.7,130.95,130.91,19.0966425]
[1765149118080,0.7,130.95,130.92,7.6381274]
[1765149119357,0.7,130.95,130.91,7.6386168]
[1765149120467,9.449064,130.96,130.91,26.7357064]
[1765149120675,0.7,130.96,130.93,7.63766898]
[1765149120845,9.449064,130.97,130.93,7.63766898]
[1765149121170,19.08075306,131.03,130.94,0.7]
[1765149121371,10.149064,131.03,130.96,9.449064]
[1765149121543,17.78104919,131.03,130.97,9.449064]
[1765149122160,0.7,131.02,130.97,9.449064]
[1765149122651,0.7,131.02,130.98,17.08381739]
[1765149123047,9.2,131.05,130.99,10.149064]
[1765149123273,8.5,131.05,131.01,9.449064]
[1765149123568,8.5,131.05,131.01,10.149064]
[1765149123949,9.2,131.05,131.01,0.7]
[1765149124273,9.2,131.05,131.01,16.308864]
[1765149124881,9.2,131.05,131.02,7.63242253]
[1765149125099,9.16,131.05,131.02,7.63242253]
[1765149126985,0.66,131.04,130.99,10.149064]
[1765149127154,9.16,131.05,131.01,17.08205065]
[1765149127560,0.66,131.04,131.01,7.63298665]
[1765149127845,10.109064,131.04,130.96,0.7]
[1765149128051,10.109064,131.04,130.99,7.63417054]
[1765149128256,10.109064,131.03,130.99,7.63417054]
[1765149128459,0.66,131.03,130.99,7.63417054]
[1765149128660,0.66,131.02,130.99,7.63417054]
[1765149129371,0.66,131.02,130.98,7.63475339]
[1765149129566,8.29273812,131.02,130.98,7.63475339]
[1765149129962,0.66,131.01,130.98,7.63475339]
[1765149130371,10.109064,131.01,130.97,7.63518513]
[1765149130874,0.66,131.0,130.97,7.63518513]
[1765149131465,8.29360736,131.0,130.96,7.63572039]
[1765149131866,0.66,130.99,130.96,7.63572039]
[1765149133167,17.74226757,131.01,130.96,7.63572039]
[1765149133355,8.29367096,131.0,130.96,7.63572039]
[1765149133767,0.66,130.99,130.96,7.63572039]
[1765149136277,0.66,130.99,130.91,26.457928]
[1765149136278,9.449064,130.98,130.91,26.457928]
[1765149136481,9.449064,130.98,130.92,7.63825236]
[1765149136482,17.0843597,130.98,130.92,7.63825236]
[1765149136685,18.91900892,130.97,130.92,7.63825236]
[1765149137078,0.66,130.96,130.92,7.63825236]
[1765149137382,10.109064,130.96,130.92,7.63825236]
[1765149137876,0.66,130.95,130.92,7.63825236]
[1765149138056,10.109064,130.95,130.91,7.63860451]
[1765149138261,9.449064,130.94,130.91,7.63860451]
[1765149138584,0.66,130.94,130.9,7.6392199]
[1765149138771,0.66,130.93,130.9,7.6392199]
[1765149139823,0.66,130.93,130.89,26.83934601]
[1765149140106,0.66,130.93,130.89,8.44000305]
[1765149140386,9.449064,130.92,130.89,0.1]
[1765149140773,0.72,130.91,130.89,0.1]
[1765149147077,0.72,130.95,130.9,10.149064]
[1765149147326,8.5,130.96,130.91,10.149064]
[1765149147794,8.5,130.96,130.92,7.63825236]
[1765149148003,0.72,130.95,130.92,7.63825236]
[1765149151005,8.5,130.96,130.92,7.63825236]
[1765149151207,9.52994492,130.98,130.93,10.149064]
[1765149151388,0.72,130.98,130.93,10.149064]
[1765149151585,0.72,130.98,130.94,9.449064]
[1765149151786,0.72,130.98,130.94,10.149064]
[1765149152002,8.35487653,130.98,130.94,7.63695539]
[1765149152410,0.72,130.98,130.94,7.63695539]
[1765149152585,0.72,130.97,130.94,7.63695539]
[1765149154595,0.72,130.97,130.94,17.08601939]
[1765149154824,0.72,130.97,130.94,7.63695539]
[1765149156704,8.35561145,130.97,130.93,7.63766878]
[1765149157313,0.72,130.96,130.93,7.63766878]
[1765149158207,8.35592531,130.96,130.92,7.63806059]
[1765149158714,0.72,130.95,130.92,7.63806059]
[1765149160505,0.72,130.95,130.91,7.63865754]
[1765149160981,0.72,130.95,130.91,17.08772154]
[1765149161181,0.72,130.95,130.91,17.78772154]
[1765149162613,0.72,130.95,130.91,36.88481114]
[1765149162813,0.72,130.95,130.91,33.54761315]
[1765149166728,0.72,130.95,130.91,29.717459]
[1765149167392,7.63595118,130.96,130.92,8.33774616]
[1765149167593,0.72,130.95,130.92,8.33774616]
[1765149167791,0.72,130.95,130.92,7.63774616]
[1765149169919,8.35674502,130.95,130.91,7.63866851]
[1765149170418,0.72,130.94,130.91,7.63866851]
[1765149170834,0.72,130.94,130.91,26.73575811]
[1765149170999,0.72,130.94,130.91,29.01746997]
[1765149171205,0.72,130.94,130.91,29.70746997]
[1765149173651,25.11880892,130.97,130.9,9.92113126]
[1765149173853,0.69,130.96,130.91,2.97171186]
[1765149174142,0.69,130.99,130.95,2.28171186]
[1765149174354,8.32312116,131.01,130.96,2.28171186]
[1765149174515,0.69,131.0,130.96,2.97171186]
[1765149174717,0.69,131.0,130.98,2.28171186]
[1765149174953,0.69,131.02,130.98,0.69]
[1765149175259,0.69,131.06,131.01,2.28171186]
[1765149175559,16.998864,131.05,131.01,2.28171186]
[1765149175723,16.998864,131.05,131.02,7.63242253]
[1765149176123,16.998864,131.05,131.02,9.91413439]
[1765149176328,0.69,131.05,131.03,2.28171186]
[1765149176748,0.69,131.07,131.03,2.28171186]
[1765149177256,0.69,131.07,131.02,9.91413439]
[1765149177468,11.78165678,131.07,131.02,9.91413439]
[1765149177950,0.65,131.06,131.02,9.91413439]
[1765149178547,0.65,131.06,131.01,9.91455979]
[1765149178937,8.80994492,131.05,131.01,2.28171186]
[1765149179261,11.09165678,131.05,130.99,2.28171186]
[1765149179417,0.65,131.04,130.99,2.28171186]
[1765149179616,0.65,131.04,130.98,9.9162549]
[1765149179617,8.80994492,131.03,130.98,9.9162549]
[1765149179853,16.44221016,131.03,130.99,2.28171186]
[1765149180023,0.65,131.02,131.0,2.28171186]
[1765149180423,0.65,131.02,130.99,2.28171186]
[1765149181446,0.65,131.02,130.99,9.91551858]
[1765149182558,8.28243398,131.02,130.98,2.28171186]
[1765149182736,8.28243398,131.02,130.97,9.9166533]
[1765149183055,0.65,131.03,130.99,2.28171186]
[1765149183253,33.3996847,131.05,131.0,2.28171186]
[1765149183444,0.65,131.05,131.01,2.28171186]
[1765149183645,0.65,131.04,131.01,2.28171186]
[1765149184049,25.11880892,131.07,131.03,2.28171186]
[1765149184374,0.65,131.12,131.06,2.28171186]
[1765149184536,0.65,131.12,131.09,2.28171186]
[1765149185355,0.65,131.12,131.09,9.90991413]
[1765149185754,0.65,131.12,131.09,2.28171186]
[1765149185955,0.65,131.12,131.09,9.90989832]
[1765149186762,0.65,131.12,131.09,13.72322572]
[1765149187270,8.27664787,131.12,131.09,6.09503926]
[1765149187770,0.65,131.12,131.09,13.72320184]
[1765149189968,0.65,131.12,131.1,6.09503926]
[1765149190160,0.65,131.14,131.11,6.09503926]
[1765149190470,8.5,131.15,131.13,6.09503926]
[1765149190638,0.65,131.16,131.13,6.09503926]
[1765149191643,0.65,131.16,131.14,6.09503926]
[1765149192253,8.27472276,131.16,131.13,6.09503926]
[1765149192544,8.27472276,131.16,131.12,13.72161708]
[1765149192761,7.62472276,131.16,131.12,13.72161708]
[1765149192968,0.65,131.15,131.12,13.72161708]
[1765149193147,25.458864,131.19,131.14,13.72020332]
[1765149193346,25.458864,131.19,131.16,6.09503926]
[1765149193557,8.5,131.19,131.16,6.09503926]
[1765149194083,0.65,131.18,131.15,6.09503926]
[1765149194242,0.65,131.18,131.11,13.72203144]
[1765149194243,14.90498418,131.17,131.11,13.72203144]
[1765149194442,14.90498418,131.17,131.11,6.09503926]
[1765149194665,0.65,131.16,131.11,6.09503926]
[1765149195270,0.65,131.16,131.11,13.72215863]
[1765149196360,7.62485703,131.15,131.11,13.72215863]
[1765149196963,15.55498418,131.14,131.08,6.09503926]
[1765149197146,15.55498418,131.14,131.08,13.72353125]
[1765149197147,24.05498418,131.14,131.08,13.72353125]
[1765149197346,6.74503926,131.13,131.08,7.62849199]
[1765149197562,6.74503926,131.13,131.07,14.42433544]
[1765149197764,0.65,131.12,131.07,13.72433544]
[1765149198273,8.27672984,131.12,131.08,7.62883243]
[1765149198467,0.65,131.12,131.08,8.32883243]
[1765149198675,0.65,131.11,131.08,7.62883243]
[1765149199569,0.65,131.12,131.08,14.42387169]
[1765149199891,0.65,131.11,131.08,13.72387169]
[1765149200170,0.65,131.11,131.08,7.62883243]
[1765149203758,8.80994492,131.1,130.97,0.99999999]
[1765149203963,6.09503926,131.09,131.04,6.09503926]
[1765149204157,0.66,131.09,131.04,6.09503926]
[1765149204465,0.66,131.08,131.04,13.72623371]
[1765149204859,0.66,131.08,131.04,14.39623371]
[1765149205059,0.66,131.08,131.04,8.30119445]
[1765149205254,0.66,131.08,131.05,7.6305956]
[1765149205976,6.09503926,131.06,131.0,25.17865689]
[1765149206158,14.90498418,131.07,131.02,7.6320516]
[1765149206359,0.66,131.06,131.02,7.6320516]
[1765149206774,0.66,131.06,131.01,7.6329363]
[1765149206775,6.09503926,131.05,131.01,7.6329363]
[1765149206949,6.75503926,131.06,131.01,7.6329363]
[1765149207149,6.75503926,131.06,131.0,25.17865689]
[1765149207150,0.66,131.05,131.0,13.72852202]
[1765149207350,0.66,131.05,131.02,7.63233441]
[1765149207757,0.66,131.05,131.01,7.63300511]
[1765149208076,0.66,131.05,131.0,6.76503926]
[1765149208274,0.66,131.07,131.02,6.09503926]
[1765149208666,0.66,131.07,131.02,2.27795159]
[1765149209177,2.93795159,131.07,131.01,2.27795159]
[1765149209559,0.66,131.06,131.02,2.27795159]
[1765149209769,19.06633412,131.09,131.03,9.90979162]
[1765149210074,9.16,131.09,131.03,26.71144012]
[1765149210272,9.16,131.09,131.05,2.27795159]
[1765149210476,9.16,131.09,131.06,2.27795159]
[1765149210665,8.5,131.09,131.06,6.09850495]
[1765149211066,8.5,131.09,131.06,13.72846026]
[1765149211284,9.16,131.09,131.06,13.72846026]
[1765149212390,9.16,131.09,131.05,6.09850495]
[1765149213271,9.16,131.09,131.06,6.09850495]
[1765149213474,7.62641789,131.13,131.08,6.09850495]
[1765149213665,8.5,131.14,131.11,6.09850495]
[1765149213975,8.5,131.14,131.12,6.09850495]
[1765149214379,8.5,131.14,131.12,13.72496671]
[1765149214581,8.5,131.14,131.12,6.09850495]
[1765149214911,0.66,131.13,131.1,7.62761056]
[1765149215072,0.66,131.13,131.09,6.09850495]
[1765149215982,0.66,131.13,131.09,13.72647385]
[1765149216678,8.2861678,131.13,131.09,13.72647385]
[1765149217083,0.66,131.12,131.09,13.72647385]
[1765149218493,9.16,131.14,131.11,6.09850495]
[1765149219683,0.66,131.13,131.11,6.09850495]
[1765149220609,0.66,131.13,131.11,13.7255838]
[1765149220803,8.5,131.14,131.11,13.7255838]
[1765149221107,9.16,131.14,131.11,13.7255838]
[1765149221293,0.66,131.13,131.1,13.7260643]
[1765149222099,0.66,131.13,131.11,13.7256835]
[1765149222688,0.66,131.13,131.11,7.62717855]
[1765149223194,0.66,131.13,131.11,13.7256835]
[1765149224790,0.66,131.13,131.11,7.62717855]
[1765149226509,0.66,131.13,131.11,17.05810454]
[1765149227788,0.66,131.13,131.11,7.62717855]
[1765149228006,0.66,131.13,131.1,79.25859804]
[1765149228989,8.28605606,131.13,131.1,62.2]
[1765149229203,0.66,131.13,131.09,9.43092599]
[1765149229395,0.66,131.13,131.1,9.43092599]
[1765149229804,17.71726082,131.13,131.08,7.62856447]
[1765149229994,8.80994492,131.12,131.08,7.62856447]
[1765149230191,8.80994492,131.09,131.05,9.43092599]
[1765149230396,17.30994492,131.09,131.04,9.43092599]
[1765149230591,0.66,131.08,131.04,17.06198508]
[1765149230797,0.66,131.08,131.05,7.63053491]
[1765149231012,0.66,131.08,131.03,9.43092599]
[1765149231213,10.09092599,131.08,131.03,7.63146204]
[1765149231416,10.09092599,131.08,131.03,7.63184003]
[1765149231417,17.72014736,131.08,131.03,7.63184003]
[1765149231598,0.66,131.07,131.03,7.63184003]
[1765149232324,0.66,131.07,131.03,9.43092599]
[1765149233399,0.66,131.07,131.01,7.63283849]
[1765149233400,18.24087091,131.06,131.01,7.63283849]
[1765149233709,8.80994492,131.06,131.01,17.06376448]
[1765149233912,0.66,131.05,131.01,17.06376448]
[1765149235104,0.66,131.08,131.03,9.43092599]
[1765149235309,0.66,131.08,131.04,9.43092599]
[1765149235498,0.66,131.08,131.05,9.43092599]
[1765149236407,0.66,131.1,131.06,9.43092599]
[1765149236922,0.66,131.09,131.06,9.43092599]
[1765149237609,0.66,131.09,131.06,17.06061485]
[1765149240636,0.66,131.14,131.08,9.43092599]
[1765149240808,0.66,131.14,131.11,9.43092599]
[1765149241001,8.80994492,131.13,131.08,9.43092599]
[1765149241211,8.28560287,131.14,131.09,9.43092599]
[1765149241414,0.66,131.13,131.09,9.43092599]
[1765149242228,8.28619139,131.13,131.08,7.62839684]
[1765149242433,8.28619139,131.13,131.09,7.6282882]
[1765149242610,0.66,131.12,131.09,17.05921419]
[1765149243628,0.66,131.12,131.09,9.43092599]
[1765149244439,0.66,131.12,131.1,9.43092599]
[1765149246837,0.66,131.12,131.1,17.05862326]
[1765149247149,0.66,131.12,131.1,9.43092599]
[1765149247311,0.66,131.12,131.08,17.05941115]
[1765149247812,0.66,131.12,131.09,9.43092599]
[1765149248520,0.66,131.12,131.09,17.05912557]
[1765149248943,8.28679351,131.12,131.07,17.06042546]
[1765149249120,8.5,131.11,131.07,17.06042546]
[1765149249315,9.17,131.11,131.07,17.06042546]
[1765149249518,0.67,131.1,131.07,17.06042546]
[1765149250113,0.67,131.1,131.06,17.0609145]
[1765149250636,8.29813097,131.1,131.06,17.0609145]
[1765149250848,17.72905696,131.1,131.05,17.06149283]
[1765149251144,0.67,131.09,131.05,17.06149283]
[1765149251854,8.80994492,131.08,131.03,17.06236529]
[1765149252147,8.80994492,131.06,131.02,7.6322836]
[1765149252637,0.67,131.05,131.02,7.6322836]
[1765149253030,0.67,131.05,131.03,9.43092599]
[1765149254526,0.67,131.05,131.03,17.06264152]
[1765149254840,8.5,131.07,131.04,9.43092599]
[1765149255019,9.17,131.07,131.04,9.43092599]
[1765149255228,0.67,131.1,131.06,9.43092599]
[1765149255426,9.17,131.11,131.08,9.43092599]
[1765149255938,9.17,131.11,131.09,9.43092599]